bitfinex/quotes_BTCUSD_20241002
["timestamp","ask_amount","ask_price","bid_price","bid_amount"]
[1727897845195,0.24340701,60255.0,60249.0,0.165975]
[1727897845430,0.24340701,60255.0,60245.0,0.28618199]
[1727897845431,0.24340701,60255.0,60246.0,0.33197]
[1727897845665,0.170957,60257.0,60247.0,0.34392461]
[1727897845905,0.005,60258.0,60248.0,0.44118868]
[1727897846158,0.24891101,60269.0,60255.0,0.44118868]
[1727897846420,0.24891101,60261.0,60255.0,0.44118868]
[1727897846670,0.005,60267.0,60256.0,0.24891101]
[1727897846930,0.005,60267.0,60262.0,0.165941]
[1727897847175,0.005,60267.0,60265.0,0.165933]
[1727897847429,0.25054701,60268.0,60265.0,0.0033183]
[1727897847430,0.006636,60268.0,60265.0,0.0033183]
[1727897847664,0.005,60267.0,60259.0,0.331899]
[1727897847905,0.001636,60268.0,60257.0,0.06900997]
[1727897847906,0.001636,60268.0,60266.0,0.16593]
[1727897848135,0.001636,60268.0,60264.0,0.165934]
[1727897848136,0.002,60267.0,60264.0,0.165934]
[1727897848382,0.002,60267.0,60266.0,0.165931]
[1727897848622,0.002,60267.0,60265.0,0.0841701]
[1727897848876,0.007,60267.0,60262.0,0.012]
[1727897849126,0.170939,60263.0,60262.0,0.012]
[1727897849370,0.005,60263.0,60256.0,0.24891101]
[1727897849620,0.001,60267.0,60256.0,0.24891101]
[1727897849858,0.005,60265.0,60260.0,0.165946]
[1727897850109,0.001,60267.0,60266.0,0.165931]
[1727897850110,0.002,60267.0,60266.0,0.165931]
[1727897850362,0.003,60267.0,60259.0,0.006]
[1727897850615,0.003,60267.0,60264.0,0.165933]
[1727897850858,0.001,60267.0,60266.0,0.165931]
[1727897851096,0.001,60263.0,60261.0,0.165943]
[1727897851380,0.001,60263.0,60260.0,0.06449019]
[1727897851877,0.001,60263.0,60257.0,0.0580849]
[1727897851878,0.005,60261.0,60257.0,0.30699591]
[1727897852360,0.005,60261.0,60257.0,0.0580849]
[1727897852714,0.005,60261.0,60260.0,0.165947]
[1727897852867,0.170972,60251.0,60250.0,0.23895101]
[1727897853338,0.165981,60248.0,60242.0,0.165996]
[1727897853570,0.165981,60248.0,60247.0,0.24891101]
[1727897853804,0.165973,60251.0,60247.0,0.0414907]
[1727897854061,0.005,60250.0,60240.0,0.0775]
[1727897854293,0.170959,60256.0,60246.0,0.24891101]
[1727897854529,0.002638,60251.0,60250.0,0.007]
[1727897854781,0.002638,60251.0,60250.0,0.61416368]
[1727897855049,0.001636,60268.0,60250.0,0.61416368]
[1727897855050,0.001636,60268.0,60250.0,0.9405371]
[1727897855292,0.24891101,60263.0,60259.0,0.44118868]
[1727897855530,0.001636,60268.0,60259.0,0.44118868]
[1727897855780,0.001636,60268.0,60266.0,0.165929]
[1727897856026,0.001636,60268.0,60267.0,0.24987665]
[1727897856266,0.001636,60268.0,60267.0,0.2488956]
[1727897856907,0.002636,60268.0,60267.0,0.2488956]
[1727897857151,0.002636,60268.0,60259.0,0.007]
[1727897857152,0.16594,60263.0,60259.0,0.007]
[1727897857447,0.165942,60262.0,60261.0,0.24891101]
[1727897857702,0.165935,60265.0,60261.0,0.165943]
[1727897857958,0.165935,60265.0,60262.0,0.0497848]
[1727897858233,0.165935,60265.0,60252.0,0.331937]
[1727897858234,0.005,60265.0,60252.0,0.331937]
[1727897858501,0.005,60265.0,60246.0,0.24891101]
[1727897858502,0.165956,60257.0,60253.0,0.41487701]
[1727897858742,0.001,60263.0,60246.0,0.58088101]
[1727897858743,0.005,60254.0,60246.0,0.58088101]
[1727897859054,0.165972,60251.0,60250.0,4e-05]
[1727897859294,0.170972,60251.0,60250.0,4e-05]
[1727897860383,0.005,60251.0,60250.0,4e-05]
[1727897860568,0.663824,60257.0,60250.0,4e-05]
[1727897860569,0.165966,60254.0,60250.0,0.166015]
[1727897860825,0.001,60251.0,60250.0,0.2039101]
[1727897861095,0.002,60251.0,60250.0,0.0398951]
[1727897861352,0.167972,60251.0,60250.0,0.0398951]
[1727897861665,0.172972,60251.0,60250.0,0.0398951]
[1727897861900,0.171972,60251.0,60250.0,0.013]
[1727897862162,0.171972,60251.0,60250.0,0.002]
[1727897862423,0.171972,60251.0,60250.0,0.015]
[1727897862670,0.006,60251.0,60250.0,0.015]
[1727897862918,0.171972,60251.0,60250.0,0.002]
[1727897863166,0.006,60251.0,60250.0,0.014]
[1727897863418,0.171972,60251.0,60250.0,0.014]
[1727897863671,0.001,60251.0,60250.0,0.1979733]
[1727897863942,0.001,60251.0,60250.0,0.19283363]
[1727897864209,0.001,60251.0,60250.0,0.35602034]
[1727897864990,0.001636,60268.0,60251.0,0.0753]
[1727897864991,0.25054701,60268.0,60251.0,0.0753]
[1727897865252,0.25054701,60268.0,60267.0,0.165928]
[1727897865770,0.001636,60268.0,60267.0,0.165928]
[1727897866047,0.001636,60268.0,60267.0,0.16712082]
[1727897866319,0.001636,60268.0,60265.0,0.331867]
[1727897866320,0.336752,60286.0,60272.0,0.44118868]
[1727897866581,0.005,60286.0,60279.0,0.165893]
[1727897866909,0.005,60286.0,60270.0,0.33184]
[1727897866910,0.336682,60299.0,60280.0,0.05308687]
[1727897867088,0.24891101,60291.0,60286.0,0.331751]
[1727897867347,0.165852,60295.0,60289.0,0.165866]
[1727897867606,0.005,60296.0,60290.0,0.04961553]
[1727897867607,0.17085,60296.0,60290.0,0.04961553]
[1727897867866,0.005,60303.0,60292.0,0.44118868]
[1727897868161,0.005,60303.0,60290.0,0.04961553]
[1727897868162,0.24891101,60301.0,60289.0,0.33173]
[1727897868434,0.005,60302.0,60289.0,0.33173]
[1727897868435,0.16584,60299.0,60294.0,0.165853]
[1727897868656,0.005,60302.0,60291.0,0.58063401]
[1727897868657,0.165849,60296.0,60291.0,0.165861]
[1727897868899,0.331696,60297.0,60292.0,0.0779677]
[1727897869136,0.331703,60295.0,60290.0,0.033173]
[1727897869380,0.165859,60292.0,60284.0,0.243179]
[1727897869622,0.332703,60295.0,60289.0,0.008]
[1727897869857,0.166851,60295.0,60290.0,0.0256911]
[1727897870095,0.001,60295.0,60292.0,0.005]
[1727897870331,0.165849,60296.0,60292.0,0.005]
[1727897870583,0.165855,60294.0,60292.0,0.0469783]
[1727897871071,0.165855,60294.0,60292.0,0.0419783]
[1727897871306,0.165855,60294.0,60292.0,0.0489783]
[1727897871544,0.002,60295.0,60292.0,0.0419783]
[1727897871802,0.001,60295.0,60292.0,0.0419783]
[1727897872137,0.165856,60293.0,60292.0,0.05386076]
[1727897872381,0.172856,60293.0,60292.0,0.012]
[1727897872618,0.005,60287.0,60278.0,0.41480701]
[1727897872855,0.170873,60287.0,60286.0,0.24891101]
[1727897873129,0.002,60295.0,60284.0,0.16588]
[1727897873130,0.006,60295.0,60284.0,0.16588]
[1727897873387,0.006,60295.0,60280.0,0.77297268]
[1727897873388,0.16586,60292.0,60286.0,0.16571446]
[1727897873623,0.02800368,60293.0,60292.0,0.01]
[1727897873624,0.20085968,60293.0,60292.0,0.01]
[1727897873902,0.02700368,60293.0,60291.0,0.165859]
[1727897874162,0.001,60287.0,60286.0,0.179875]
[1727897874419,0.001,60287.0,60286.0,0.014]
[1727897874652,0.001,60287.0,60286.0,0.0761658]
[1727897874920,0.001,60287.0,60286.0,0.025]
[1727897875149,0.002,60287.0,60286.0,0.039]
[1727897875866,0.001,60287.0,60286.0,0.014]
[1727897876114,0.001,60287.0,60286.0,0.0651656]
[1727897876614,0.16587,60288.0,60286.0,0.0501656]
[1727897877120,0.165873,60287.0,60286.0,0.0501656]
[1727897877356,0.165873,60287.0,60286.0,0.014]
[1727897877357,0.171873,60287.0,60286.0,0.014]
[1727897877615,0.166873,60287.0,60286.0,0.014]
[1727897877854,0.167873,60287.0,60286.0,0.033]
[1727897878102,0.167873,60287.0,60286.0,0.0531205]
[1727897878368,0.173873,60287.0,60286.0,0.0461205]
[1727897878627,0.174873,60287.0,60286.0,0.0329]
[1727897879124,0.174873,60287.0,60286.0,0.007]
[1727897879125,0.171873,60287.0,60286.0,0.007]
[1727897879383,0.173873,60287.0,60286.0,0.008]
[1727897879634,0.173873,60287.0,60286.0,0.0079]
[1727897879882,0.173873,60287.0,60286.0,0.0089]
[1727897880136,0.168873,60287.0,60286.0,0.0089]
[1727897880351,0.165873,60287.0,60286.0,0.0263786]
[1727897880596,0.001,60287.0,60286.0,0.0263786]
[1727897880833,0.156443,60287.0,60286.0,0.0089]
[1727897881118,0.001632,60290.0,60286.0,0.0089]
[1727897881393,0.001632,60290.0,60289.0,0.60705568]
[1727897881633,0.001632,60290.0,60289.0,0.73533191]
[1727897882663,0.001632,60290.0,60289.0,0.89851862]
[1727897883147,0.002632,60290.0,60289.0,0.91251862]
[1727897883467,0.001634,60307.0,60304.0,0.165826]
[1727897883705,0.001634,60307.0,60304.0,0.68871468]
[1727897883963,0.001634,60307.0,60304.0,0.0817]
[1727897884206,0.001634,60307.0,60306.0,0.16582]
[1727897885231,0.005,60331.0,60317.0,0.331577]
[1727897885462,0.25054901,60324.0,60318.0,0.07727657]
[1727897885721,0.25054901,60324.0,60313.0,0.331599]
[1727897885722,0.001638,60324.0,60313.0,0.331599]
[1727897885981,0.001638,60324.0,60316.0,0.24891101]
[1727897886518,0.001638,60324.0,60323.0,0.41468501]
[1727897886788,0.001638,60324.0,60323.0,0.1077806]
[1727897887066,0.001638,60324.0,60323.0,0.165774]
[1727897887609,0.001638,60324.0,60318.0,0.002]
[1727897887610,0.002638,60324.0,60318.0,0.002]
[1727897887847,0.002638,60324.0,60319.0,0.24891101]
[1727897888099,0.002638,60324.0,60323.0,0.165774]
[1727897888331,0.002638,60324.0,60323.0,0.2074425]
[1727897889300,0.001638,60324.0,60323.0,0.2214425]
[1727897889783,0.002638,60324.0,60323.0,0.2214425]
[1727897890024,0.002638,60324.0,60323.0,0.2074425]
[1727897890261,0.003638,60324.0,60323.0,0.2354425]
[1727897891002,0.001638,60324.0,60323.0,0.2214425]
[1727897891489,0.001638,60324.0,60323.0,0.2074425]
[1727897891716,0.001638,60324.0,60323.0,0.2214425]
[1727897892203,0.001638,60324.0,60323.0,0.0416685]
[1727897892441,0.168409,60324.0,60323.0,0.0696685]
[1727897892677,0.002638,60324.0,60323.0,0.0556685]
[1727897892922,0.003638,60324.0,60323.0,0.0556685]
[1727897893189,0.003638,60324.0,60323.0,0.0697085]
[1727897893427,0.003638,60324.0,60323.0,0.2354825]
[1727897893668,0.001638,60324.0,60323.0,0.2214825]
[1727897893909,0.002638,60324.0,60323.0,0.2354825]
[1727897895111,0.002638,60324.0,60323.0,0.46349046]
[1727897895366,0.002638,60324.0,60323.0,0.46246921]
[1727897895605,0.003638,60324.0,60323.0,0.2354825]
[1727897896114,0.001638,60324.0,60323.0,0.37398369]
[1727897896507,0.002638,60324.0,60323.0,0.2214825]
[1727897896509,0.002638,60324.0,60323.0,0.02604]
[1727897896510,0.169409,60324.0,60323.0,0.02604]
[1727897896779,0.003638,60324.0,60323.0,0.01404]
[1727897897017,0.169409,60324.0,60323.0,0.01404]
[1727897897565,0.169409,60324.0,60323.0,0.0771795]
[1727897897566,0.170409,60324.0,60323.0,0.0771795]
[1727897897829,0.174409,60324.0,60323.0,0.01204]
[1727897898066,0.174409,60324.0,60323.0,0.02604]
[1727897898331,0.174409,60324.0,60323.0,0.0701135]
[1727897898606,0.006638,60324.0,60323.0,4e-05]
[1727897898868,0.001638,60324.0,60323.0,0.177814]
[1727897899120,0.001638,60324.0,60323.0,0.25330371]
[1727897899382,0.001638,60324.0,60323.0,0.25730371]
[1727897899896,0.001638,60324.0,60323.0,0.26130371]
[1727897900179,0.001638,60324.0,60323.0,0.25730371]
[1727897900392,0.001638,60324.0,60323.0,0.27130371]
[1727897901449,0.001638,60324.0,60323.0,0.26330371]
[1727897901689,0.167409,60324.0,60323.0,0.09352971]
[1727897901938,0.167409,60324.0,60323.0,0.02804]
[1727897902189,0.167409,60324.0,60323.0,4e-05]
[1727897902190,0.001638,60324.0,60323.0,4e-05]
[1727897902500,0.001638,60324.0,60323.0,0.02804]
[1727897902736,0.001638,60324.0,60323.0,0.0805786]
[1727897902978,0.001638,60324.0,60323.0,0.01404]
[1727897902979,0.172409,60324.0,60323.0,0.01404]
[1727897903520,0.172409,60324.0,60323.0,0.02604]
[1727897903521,0.174409,60324.0,60323.0,0.02604]
[1727897903803,0.174409,60324.0,60313.0,0.17412501]
[1727897903804,0.165798,60314.0,60313.0,0.17412501]
[1727897904062,0.165798,60315.0,60314.0,0.0174125]
[1727897904561,0.007,60315.0,60300.0,0.331713]
[1727897904828,0.182638,60324.0,60300.0,0.331713]
[1727897904829,0.002,60307.0,60306.0,0.24891101]
[1727897905330,0.165824,60305.0,60300.0,4e-05]
[1727897905332,0.165831,60303.0,60300.0,4e-05]
[1727897905690,0.170834,60301.0,60300.0,4e-05]
[1727897905962,0.170834,60301.0,60278.0,0.24891101]
[1727897905963,0.170873,60287.0,60278.0,0.24891101]
[1727897906225,0.62760109,60287.0,60278.0,0.24891101]
[1727897906474,0.344073,60287.0,60278.0,0.24891101]
[1727897907011,0.344073,60287.0,60286.0,0.0257887]
[1727897907012,0.342073,60287.0,60286.0,0.0257887]
[1727897907288,0.03100733,60287.0,60286.0,0.000816]
[1727897907557,0.172873,60287.0,60286.0,0.000816]
[1727897907801,0.007,60287.0,60286.0,0.000816]
[1727897908034,0.172873,60287.0,60286.0,0.000816]
[1727897908716,0.172873,60287.0,60286.0,0.001816]
[1727897908717,0.180873,60287.0,60286.0,0.001816]
[1727897908950,0.190873,60287.0,60286.0,0.002816]
[1727897909177,0.172873,60287.0,60286.0,0.000816]
[1727897909717,0.006,60287.0,60286.0,0.007816]
[1727897909968,0.006,60287.0,60286.0,0.176691]
[1727897909969,0.001,60287.0,60286.0,0.176691]
[1727897910229,0.005,60290.0,60287.0,0.165872]
[1727897910501,0.005,60290.0,60286.0,0.09574533]
[1727897910502,0.007,60292.0,60286.0,0.09574533]
[1727897910765,0.001,60287.0,60286.0,0.166691]
[1727897911001,0.33165,60305.0,60286.0,0.166691]
[1727897911002,0.005,60308.0,60293.0,0.331713]
[1727897911227,0.24891101,60305.0,60304.0,0.165826]
[1727897911481,0.005,60308.0,60307.0,0.165818]
[1727897912235,0.005,60308.0,60300.0,0.331673]
[1727897912475,0.165819,60307.0,60303.0,0.41473801]
[1727897912701,0.002,60306.0,60304.0,0.2404661]
[1727897912945,0.006,60308.0,60307.0,0.014]
[1727897913198,0.001,60308.0,60307.0,0.179818]
[1727897913427,0.001,60308.0,60307.0,0.50619142]
[1727897913428,0.002,60308.0,60307.0,0.50619142]
[1727897913665,0.001,60308.0,60307.0,0.49219142]
[1727897914430,0.001,60308.0,60307.0,0.57429142]
[1727897914933,0.001638,60324.0,60323.0,0.165774]
[1727897915186,0.001638,60324.0,60323.0,0.60661031]
[1727897915915,0.001638,60324.0,60323.0,0.165774]
[1727897916640,0.002638,60324.0,60323.0,0.193774]
[1727897916900,0.001638,60324.0,60323.0,1.154868]
[1727897917160,0.001638,60324.0,60323.0,0.90264272]
[1727897917161,0.00110928,60324.0,60323.0,0.90264272]
[1727897917399,0.336441,60343.0,60335.0,0.16574]
[1727897917400,0.005,60341.0,60335.0,0.16574]
[1727897917614,0.005,60341.0,60336.0,0.2154609]
[1727897917882,0.170726,60341.0,60336.0,0.2154609]
[1727897918184,0.331441,60343.0,60337.0,0.00244419]
[1727897918185,0.005,60343.0,60337.0,0.00244419]
[1727897918446,0.333053,60347.0,60333.0,0.24891101]
[1727897918447,0.001634,60347.0,60340.0,0.44083631]
[1727897918699,0.001634,60347.0,60341.0,0.20980663]
[1727897918700,0.165713,60346.0,60341.0,0.20980663]
[1727897918960,0.165722,60342.0,60341.0,0.04408363]
[1727897919220,0.167342,60347.0,60341.0,0.24891101]
[1727897919478,0.331428,60345.0,60337.0,0.011]
[1727897919745,0.170733,60338.0,60337.0,0.018]
[1727897920472,0.170733,60338.0,60337.0,0.007]
[1727897920702,0.170733,60338.0,60337.0,0.03591121]
[1727897921431,0.172733,60338.0,60337.0,0.03591121]
[1727897921676,0.170733,60338.0,60337.0,0.007]
[1727897921906,0.19671687,60338.0,60337.0,0.007]
[1727897922144,0.19871687,60338.0,60337.0,0.007]
[1727897922622,0.165771,60324.0,60323.0,0.24891101]
[1727897923769,0.170765,60327.0,60323.0,0.24891101]
[1727897924010,0.005,60327.0,60323.0,0.014]
[1727897924280,0.005,60329.0,60323.0,0.014]
[1727897924517,0.336521,60328.0,60324.0,0.0594478]
[1727897924756,0.005,60328.0,60324.0,0.0594478]
[1727897925002,0.165765,60327.0,60324.0,0.0594478]
[1727897925236,0.005,60328.0,60324.0,0.0594478]
[1727897925487,0.005,60328.0,60325.0,0.06539088]
[1727897925488,0.165768,60326.0,60325.0,0.06539088]
[1727897925764,0.165768,60326.0,60309.0,0.52293631]
[1727897925765,0.331554,60322.0,60309.0,0.0821]
[1727897926010,0.165776,60322.0,60321.0,0.24891101]
[1727897926248,0.165798,60314.0,60309.0,0.16581]
[1727897926489,0.165798,60314.0,60307.0,0.331632]
[1727897926740,0.005,60317.0,60298.0,0.85511931]
[1727897926988,0.33153,60327.0,60296.0,0.24891101]
[1727897926989,0.331646,60306.0,60296.0,0.24891101]
[1727897927224,0.005,60308.0,60297.0,0.331687]
[1727897927485,0.331638,60307.0,60296.0,0.24891101]
[1727897927763,0.165825,60305.0,60300.0,0.165836]
[1727897928021,0.165825,60305.0,60300.0,0.165835]
[1727897928280,0.165825,60305.0,60298.0,0.331681]
[1727897928281,0.165825,60305.0,60301.0,0.165833]
[1727897928775,0.165825,60305.0,60302.0,0.08292]
[1727897928776,0.33165,60305.0,60302.0,0.08292]
[1727897929048,0.005,60304.0,60295.0,0.24891101]
[1727897929310,0.005,60304.0,60298.0,0.165842]
[1727897929311,0.165831,60303.0,60298.0,0.165842]
[1727897929607,0.165831,60302.0,60301.0,0.014]
[1727897929837,0.165831,60302.0,60301.0,0.0333846]
[1727897930101,0.165831,60302.0,60301.0,0.0193846]
[1727897930346,0.165834,60301.0,60300.0,0.014]
[1727897930585,0.165834,60301.0,60296.0,0.165848]
[1727897930888,0.005,60304.0,60302.0,0.006]
[1727897931125,0.001,60305.0,60300.0,0.331671]
[1727897931361,0.005,60304.0,60301.0,0.169832]
[1727897931602,0.001,60305.0,60300.0,0.331671]
[1727897931603,0.005,60305.0,60302.0,0.29582077]
[1727897931839,0.165821,60306.0,60302.0,0.12999077]
[1727897932078,0.005,60306.0,60303.0,0.09104981]
[1727897932325,0.005,60305.0,60303.0,0.09104981]
[1727897932591,0.001,60304.0,60302.0,0.00258784]
[1727897932841,0.001,60304.0,60301.0,0.172834]
[1727897932842,0.001,60304.0,60303.0,0.60666531]
[1727897933326,0.001,60304.0,60303.0,0.165829]
[1727897933576,0.001,60304.0,60303.0,0.01]
[1727897933823,0.005,60309.0,60303.0,0.01]
[1727897934071,0.331624,60310.0,60303.0,0.01]
[1727897934072,0.165826,60304.0,60303.0,0.01]
[1727897934557,0.331587,60316.0,60303.0,0.61402302]
[1727897934799,0.005,60315.0,60304.0,0.0614023]
[1727897935037,0.165813,60309.0,60304.0,0.0614023]
[1727897935274,0.165813,60309.0,60305.0,0.27303424]
[1727897935508,0.165815,60308.0,60305.0,0.27303424]
[1727897935788,0.331615,60311.0,60305.0,0.27303424]
[1727897935789,0.165812,60309.0,60305.0,0.27303424]
[1727897936023,0.165812,60309.0,60306.0,0.08429285]
[1727897936258,0.165818,60307.0,60306.0,0.08429285]
[1727897936505,0.165815,60308.0,60305.0,0.03812323]
[1727897936738,0.165815,60308.0,60305.0,0.014]
[1727897936987,0.165819,60307.0,60305.0,0.014]
[1727897937240,0.005,60315.0,60306.0,0.41209772]
[1727897937478,0.1915,60326.0,60306.0,0.41209772]
[1727897937479,0.005,60317.0,60307.0,0.09313363]
[1727897937709,0.005,60315.0,60307.0,0.09313363]
[1727897937960,0.165802,60313.0,60308.0,0.10377946]
[1727897938237,0.005,60317.0,60308.0,0.10377946]
[1727897938485,0.165797,60315.0,60309.0,0.16912635]
[1727897938709,0.165797,60315.0,60310.0,0.10216415]
[1727897938943,0.165789,60318.0,60313.0,0.1658]
[1727897939183,0.336548,60323.0,60313.0,0.16318671]
[1727897939416,0.165781,60321.0,60314.0,0.26957622]
[1727897939659,0.005816,60322.0,60314.0,0.68428423]
[1727897939892,0.005816,60322.0,60318.0,0.165786]
[1727897939893,0.000816,60322.0,60318.0,0.165786]
[1727897940136,0.000816,60322.0,60319.0,0.10132569]
[1727897940380,0.000816,60322.0,60319.0,0.26710869]
[1727897940622,0.000816,60322.0,60319.0,0.10132569]
[1727897941391,0.000816,60322.0,60320.0,0.16909591]
[1727897941664,0.000816,60322.0,60320.0,0.60733793]
[1727897941909,0.165782,60320.0,60319.0,0.11232569]
[1727897942171,0.170782,60320.0,60319.0,0.011]
[1727897942414,0.170782,60320.0,60319.0,0.025]
[1727897942657,0.170782,60320.0,60319.0,0.014]
[1727897942903,0.19677213,60320.0,60319.0,0.014]
[1727897943153,0.02599013,60320.0,60319.0,0.34297171]
[1727897943419,0.000816,60322.0,60320.0,0.165782]
[1727897943660,0.000816,60322.0,60319.0,0.25556751]
[1727897943900,0.000816,60322.0,60320.0,0.012]
[1727897944138,0.165782,60320.0,60319.0,0.0923808]
[1727897944383,0.000816,60322.0,60319.0,0.028]
[1727897944384,0.166593,60322.0,60319.0,0.028]
[1727897944637,0.165782,60320.0,60311.0,0.28554198]
[1727897944886,0.16579,60317.0,60316.0,0.24891101]
[1727897945135,0.000816,60322.0,60319.0,0.026]
[1727897945409,0.165782,60320.0,60319.0,0.026]
[1727897945655,0.165782,60320.0,60319.0,0.012]
[1727897945894,0.33157,60319.0,60314.0,0.24891101]
[1727897946148,0.33156,60321.0,60314.0,0.52616471]
[1727897946407,0.331571,60319.0,60314.0,0.36036771]
[1727897946651,0.165796,60315.0,60314.0,0.1114567]
[1727897946898,0.165796,60315.0,60311.0,0.179807]
[1727897947134,0.165796,60315.0,60308.0,0.3566801]
[1727897947367,0.165807,60311.0,60309.0,0.16318671]
[1727897947603,0.005,60318.0,60310.0,0.06045988]
[1727897947844,0.165797,60315.0,60314.0,0.014]
[1727897948091,0.165797,60315.0,60311.0,0.179806]
[1727897948552,0.02599045,60320.0,60312.0,0.06774177]
[1727897948560,0.165785,60319.0,60312.0,0.06774177]
[1727897948833,0.000816,60322.0,60317.0,0.023]
[1727897949083,0.007,60342.0,60321.0,0.44872869]
[1727897949343,0.331408,60349.0,60334.0,0.28554198]
[1727897949616,0.005,60346.0,60335.0,0.16318671]
[1727897949868,0.331405,60350.0,60341.0,0.331446]
[1727897950137,0.165738,60336.0,60323.0,0.28554198]
[1727897950389,0.165739,60336.0,60332.0,0.165748]
[1727897950656,0.331469,60338.0,60331.0,0.3315]
[1727897950963,0.331469,60338.0,60332.0,0.0911931]
[1727897951159,0.331469,60338.0,60332.0,0.2569421]
[1727897951405,0.331449,60342.0,60332.0,0.0911931]
[1727897951645,0.005,60343.0,60335.0,0.165741]
[1727897951646,0.331449,60341.0,60335.0,0.165741]
[1727897951891,0.165727,60340.0,60332.0,0.014]
[1727897952142,0.165727,60340.0,60336.0,0.16905114]
[1727897952388,0.0259808,60343.0,60337.0,0.33147]
[1727897952625,0.0259808,60343.0,60333.0,0.10571587]
[1727897952865,0.02582569,60343.0,60336.0,0.24891101]
[1727897953102,0.02582569,60343.0,60334.0,0.05318136]
[1727897953103,0.170741,60335.0,60334.0,0.05318136]
[1727897953350,0.005,60335.0,60330.0,0.331509]
[1727897953616,0.331471,60337.0,60332.0,0.014]
[1727897953855,0.02664069,60343.0,60336.0,0.24891101]
[1727897954093,0.02664069,60343.0,60342.0,0.165722]
[1727897954094,0.000815,60343.0,60342.0,0.165722]
[1727897954332,0.000815,60343.0,60342.0,0.23175857]
[1727897955104,0.000815,60343.0,60342.0,0.06603657]
[1727897955352,0.005,60341.0,60336.0,0.013]
[1727897955593,0.005,60341.0,60337.0,0.24891101]
[1727897955594,0.165734,60338.0,60337.0,0.24891101]
[1727897956103,0.165734,60338.0,60336.0,0.013]
[1727897956104,0.165735,60337.0,60336.0,0.013]
[1727897956340,0.172735,60337.0,60336.0,0.013]
[1727897956828,0.165741,60335.0,60329.0,0.24891101]
[1727897957072,0.005,60335.0,60334.0,0.02917771]
[1727897957554,0.331436,60344.0,60337.0,0.165734]
[1727897957555,0.166534,60343.0,60337.0,0.165734]
[1727897957794,0.005,60341.0,60338.0,0.01949117]
[1727897958030,0.005,60339.0,60338.0,0.01949117]
[1727897958268,0.005,60337.0,60335.0,0.16574]
[1727897958515,0.000815,60343.0,60338.0,0.165732]
[1727897958799,0.005,60337.0,60334.0,0.21736442]
[1727897959045,0.005,60337.0,60336.0,0.24891101]
[1727897959287,0.000815,60343.0,60336.0,0.24891101]
[1727897959555,0.005,60341.0,60335.0,0.02173644]
[1727897959785,0.005,60341.0,60336.0,0.05706009]
[1727897960015,0.005,60341.0,60336.0,0.3059711]
[1727897960256,0.005,60341.0,60338.0,0.011]
[1727897960495,0.000815,60343.0,60338.0,0.011]
[1727897960742,0.000815,60343.0,60341.0,0.24891101]
[1727897960976,0.000815,60343.0,60342.0,0.0248911]
[1727897963219,0.000815,60343.0,60342.0,0.0388911]
[1727897964198,0.000815,60343.0,60342.0,0.0528911]
[1727897964698,0.000815,60343.0,60342.0,0.50415508]
[1727897964952,0.165708,60347.0,60342.0,0.33843308]
[1727897965197,0.001634,60355.0,60343.0,0.05041551]
[1727897965198,0.165703,60349.0,60343.0,0.05041551]
[1727897965427,0.001634,60355.0,60343.0,0.05041551]
[1727897965667,0.001634,60355.0,60344.0,0.08585832]
[1727897965905,0.331383,60353.0,60344.0,0.08585832]
[1727897966426,0.165697,60352.0,60344.0,0.08585832]
[1727897966662,0.331383,60354.0,60345.0,0.165713]
[1727897966904,0.165701,60350.0,60344.0,0.08585832]
[1727897967135,0.167331,60351.0,60350.0,0.00017412]
[1727897967375,0.001632,60351.0,60350.0,0.00017412]
[1727897967652,0.001632,60351.0,60350.0,0.01676193]
[1727897967901,0.001632,60351.0,60350.0,0.00017412]
[1727897969708,0.001632,60351.0,60350.0,0.01317412]
[1727897970190,0.001632,60351.0,60350.0,0.01648741]
[1727897970424,0.001632,60351.0,60350.0,0.03048741]
[1727897971194,0.174329,60351.0,60350.0,0.02717412]
[1727897971990,0.172329,60351.0,60350.0,0.05478263]
[1727897972471,0.172329,60351.0,60350.0,0.04178263]
[1727897972717,0.172329,60351.0,60350.0,0.01417412]
[1727897972981,0.172329,60351.0,60350.0,0.00017412]
[1727897973215,0.173329,60351.0,60350.0,0.00017412]
[1727897973447,0.007632,60351.0,60350.0,0.00017412]
[1727897973683,0.007632,60351.0,60350.0,0.01676243]
[1727897973684,0.001632,60351.0,60350.0,0.01676243]
[1727897973909,0.006632,60351.0,60350.0,0.01876243]
[1727897974148,0.007632,60351.0,60350.0,0.01876243]
[1727897974442,0.006632,60351.0,60350.0,0.01676243]
[1727897974683,0.006632,60351.0,60350.0,0.03076243]
[1727897974684,0.172329,60351.0,60350.0,0.03076243]
[1727897974931,0.172329,60351.0,60350.0,0.01417412]
[1727897975414,0.172329,60351.0,60350.0,0.02517412]
[1727897975652,0.172329,60351.0,60350.0,0.01417412]
[1727897975888,0.172329,60351.0,60350.0,0.05605363]
[1727897976346,0.172329,60351.0,60350.0,0.07005363]
[1727897976829,0.174329,60351.0,60350.0,0.02717412]
[1727897977066,0.172329,60351.0,60350.0,0.02717412]
[1727897979912,0.001634,60355.0,60350.0,0.55320281]
[1727897980158,0.000816,60364.0,60358.0,0.165678]
[1727897980450,0.000816,60364.0,60358.0,0.64071874]
[1727897980637,0.0002,60379.0,60371.0,0.28554198]
[1727897980876,0.0002,60379.0,60373.0,0.496909]
[1727897980877,0.24891101,60374.0,60373.0,0.496909]
[1727897981110,0.0002,60379.0,60377.0,0.45116698]
[1727897981582,0.0002,60379.0,60377.0,0.47416698]
[1727897981833,0.0002,60379.0,60377.0,0.63735369]
[1727897982345,0.001632,60385.0,60382.0,0.165612]